[Event "84th Armenian-HL-ch 2024"]
[Site "Yerevan"]
[Date "2024.01.17"]
[Round "6.3"]
[White "Petrosyan, Manuel"]
[Black "Hovhannisyan, Robert"]
[Result "1/2-1/2"]
[ECO "A13"]
[WhiteElo "2627"]
[BlackElo "2611"]
[Annotator "TA"]
[PlyCount "85"]
[EventDate "2024.01.11"]
[EventType "tourn"]
[EventCountry "ARM"]
[SourceTitle "playchess.com"]
[Source "ChessBase"]
[SourceQuality "1"]
[TimeControl "40/5400+30:1800+30"]

{[%evp 13,85,1,15,27,20,19,27,14,37,37,33,37,39,35,33,35,41,17,25,20,22,22,24,0,0,0,0,0,0,0,1,1,1,1,1,1,1,1,1,0,1,1,2,0,0,0,6,0,0,0,0,0,0,0,7,7,6,4,6,0,0,0,0,0,80,0,0,0,0,0,0,0,0,0]} 1. Nf3 {[%emt 0:06:26]} d5 {[%emt 0:00:20]} 2. e3 {[%emt 0:00:24]} Nf6 {[%emt 0:00:41]} 3. c4 {[%emt 0:00:15]} e6 {[%emt 0:00:22]} 4. Nc3 {[%emt 0:03:07]} Be7 {[%emt 0:02:38]} 5. b3 {[%emt 0:04:05]} O-O {[%emt 0:04:36]} 6. Bb2 {[%emt 0:00:06]} c5 {[%emt 0:00:05]} 7. cxd5 {[%emt 0:06:11]} exd5 {[%emt 0:00:04]} 8. d4 {[%emt 0:01:36] A13: English Opening: 1...e6.} Nc6 {[%emt 0:01:50]} 9. Be2 {[%emt 0:06:05]} Ne4 {[%emt 0:00:55] Nowadays more popular than 9...Bg4.} 10. dxc5 {[%emt 0:15:14] White has an edge.} Qa5 {[%emt 0:05:24]} 11. Rc1 {[%emt 0:02:28]} Bf6 {[%emt 0:01:06][%cal Re4c3]} 12. Nd4 $1 {[%emt 0:00:23]} Nxc5 {[%emt 0:01:21]} 13. Nxc6 {[%emt 0:02:53]} bxc6 {[%emt 0:00:07]} 14. O-O {[%emt 0:02:43]} Ne4 {[%emt 0:03:26][%cal Re4c3]} 15. Qc2 {[%emt 0:01:14]} Nxc3 {[%emt 0:01:09]} 16. Bxc3 {[%emt 0:00:04]} Bxc3 {[%emt 0:00:06]} 17. Qxc3 {[%emt 0:00:03]} Qxa2 {[%emt 0:01:29]} 18. Bf3 {[%emt 0:04:37] [#] Threatens to win with Ra1.} (18. Rc2 $5 {[%cal Rc2a2]} Qa3 19. Ra1 $14 (19. Qxc6 Qxb3 20. Rc3 Bb7 $11)) 18... Rb8 $146 {[%emt 0:13:01]} ({Predecessor:} 18... Qa6 19. Qxc6 Qxc6 20. Rxc6 Be6 21. Rd1 Rab8 22. Rc7 Rxb3 23. Rxa7 Rfb8 24. Raa1 R3b5 {½-½ Nakamura,H (2768)-So,W (2761) American Cup Champ 2023 (5.1)}) 19. Qxc6 {[%emt 0:01:03]} Be6 {[%emt 0:00:45]} 20. Ra1 {[%emt 0:08:02]} Qxb3 {[%emt 0:00:41]} 21. Rxa7 {[%emt 0:00:09]} Qc4 {[%emt 0:03:50]} 22. Rc7 {[%emt 0:02:32]} Rfc8 {[%emt 0:06:53]} 23. Rxc8+ {[%emt 0:01:51]} Rxc8 {[%emt 0:00:04]} 24. Qd6 {[%emt 0:01:31]} Qc7 {[%emt 0:51:37]} 25. Qa3 {[%emt 0:05:55]} Qc3 {[%emt 0:00:00]} 26. Qa7 {[%emt 0:01:46]} Qc5 {[%emt 0:00:00]} 27. Qa1 {[%emt 0:00:22]} Qc3 {[%emt 0:00:00]} 28. Qa4 {[%emt 0:01:48]} Qc4 {[%emt 0:00:00]} 29. Qa1 {[%emt 0:05:59]} Qc3 {[%emt 0:00:00]} 30. Qa7 {[%emt 0:01:50]} Qc5 {[%emt 0:00:00]} 31. Qa4 {[%emt 0:00:47]} Qc4 {[%emt 0:00:00]} 32. Qd1 {[%emt 0:00:40]} g6 {[%emt 0:00:00]} 33. h3 {[%emt 0:00:58]} Rd8 {[%emt 0:00:00]} 34. Qb1 {[%emt 0:08:14]} Qc3 {[%emt 0:00:00]} 35. Rd1 {[%emt 0:01:10]} Kg7 {[%emt 0:00:00]} 36. Qb5 {[%emt 0:02:15]} Ra8 {[%emt 0:00:00]} 37. Qb1 {[%emt 0:01:56]} Ra4 {[%emt 0:00:00]} 38. Qb8 {[%emt 0:01:25]} (38. Bxd5 $2 {is the wrong capture.} Bxd5 39. Qd3 (39. Rxd5 $2 Ra1 $19) 39... Qxd3 40. Rxd3 Be6 $19) 38... Qf6 {[%emt 0:00:00]} (38... Ra1 $11 {remains equal.} 39. Rxa1 Qxa1+ 40. Kh2 Qf6) 39. Qd6 {[%emt 0:00:32]} ({Don't play} 39. Bxd5 $6 Bxd5 40. Rxd5 Ra1+ 41. Kh2 Qxf2 $11) (39. Qb3 $16 Rc4 40. Bxd5 Bxd5 41. Rxd5 Rc1+ 42. Rd1) 39... Ra1 {[%emt 0:00:00] [#] Strongly threatening ...Rxd1+. The position is equal.} 40. Rxa1 {[%emt 0:00:00]} Qxa1+ {[%emt 0:00:00]} 41. Kh2 {[%emt 0:00:15] Active counter play!} Qf6 {[%emt 0:00:00]} 42. Kg1 {[%emt 0:11:31]} Qa1+ {[%emt 0:00:00]} 43. Kh2 {[%emt 0:00:10] Weighted Error Value: White=0.05 (flawless) /Black=0.05 (flawless)} 1/2-1/2

[Event "84th Armenian-HL-ch 2024"]
[Site "Yerevan"]
[Date "2024.01.17"]
[Round "6.4"]
[White "Ter-Sahakyan, Samvel"]
[Black "Piliposyan, Robert"]
[Result "1/2-1/2"]
[ECO "C82"]
[WhiteElo "2649"]
[BlackElo "2367"]
[Annotator "TA"]
[PlyCount "51"]
[EventDate "2024.01.11"]
[EventType "tourn"]
[EventCountry "ARM"]
[SourceTitle "playchess.com"]
[Source "ChessBase"]
[SourceQuality "1"]
[TimeControl "40/5400+30:1800+30"]

{[%evp 23,51,0,0,0,0,0,0,0,0,0,18,0,0,-23,0,0,0,0,0,0,0,-2,-3,-3,-2,-2,-2,-4,0,0]} 1. e4 {[%emt 0:00:10]} e5 {[%emt 0:00:26]} 2. Nf3 {[%emt 0:00:09]} Nc6 {[%emt 0:00:08]} 3. Bb5 {[%emt 0:00:37]} a6 {[%emt 0:00:05]} 4. Ba4 {[%emt 0:00:06]} Nf6 {[%emt 0:00:07]} 5. O-O {[%emt 0:01:31]} Nxe4 {[%emt 0:00:15]} 6. d4 {[%emt 0:00:20]} b5 {[%emt 0:00:05]} 7. Bb3 {[%emt 0:00:09]} d5 {[%emt 0:00:06]} 8. dxe5 {[%emt 0:00:14]} Be6 {[%emt 0:00:05]} 9. c3 {[%emt 0:01:23]} Bc5 {[%emt 0:00:29]} 10. Nbd2 {[%emt 0:01:30]} O-O {[%emt 0:00:17]} 11. Bc2 {[%emt 0:00:20]} Nxf2 {[%emt 0:00:24]} 12. Rxf2 {[%emt 0:00:04]} f6 {[%emt 0:00:06]} 13. Nf1 {[%emt 0:00:13] [#] Strongly threatening Be3. C82: Open Ruy Lopez: 9 c3 without 9...Be7.} Bxf2+ {[%emt 0:00:06]} 14. Kxf2 {[%emt 0:00:03]} fxe5 {[%emt 0:00:06]} 15. Kg1 {[%emt 0:00:14][%cal Oc2h7]} Qd6 {[%emt 0:00:55]} 16. Be3 {[%emt 0:12:33]} Bf5 {[%emt 0:05:03]} 17. Bb3 {[%emt 0:13:49][%mdl 1024] White has compensation. A strong pair of Bishops.} Rad8 {[%emt 0:03:16] [#]} 18. a4 $146 {[%emt 0:10:01]} ({Predecessor:} 18. Qe1 Na5 19. Qf2 Nb7 20. Re1 Kh8 21. Qg3 Rde8 22. Bf2 Be4 23. N1d2 Bxf3 24. Nxf3 {1-0 Carlsen,M (2859)-Le,Q (2728) Meltwater Tour Final rapid 2022 (5.7)}) 18... Bg4 {[%emt 0:25:49] Hoping for ...e4.} (18... Kh8 $5 {[%cal Rf5g4]}) 19. axb5 {[%emt 0:08:06] The position is equal.} axb5 {[%emt 0:03:31] And now ...e4 would win.} 20. N1d2 {[%emt 0:13:20][%cal Bf1d2,Bd2e4,Be4c5][%mdl 32]} e4 {[%emt 0:24:19]} 21. Nxe4 {[%emt 0:03:05]} Qe6 {[%emt 0:00:23][%mdl 64] [#] Pin} 22. Nfg5 {[%emt 0:04:28]} Bxd1 {[%emt 0:01:14]} 23. Nxe6 {[%emt 0:00:08]} Bxb3 {[%emt 0:00:09]} 24. Nxd8 {[%emt 0:04:42]} Rxd8 {[%emt 0:02:37]} 25. Nc5 {[%emt 0:00:50]} Bc2 {[%emt 0:01:39]} 26. Bf4 {[%emt 0:11:52] Not much happened in this game.   Weighted Error Value: White=0.05 (flawless) /Black=0.06 (flawless)} 1/2-1/2

[Event "84th Armenian-HL-ch 2024"]
[Site "Yerevan"]
[Date "2024.01.17"]
[Round "6.5"]
[White "Chaqryan, Erik"]
[Black "Harutyunyan, Tigran K."]
[Result "1/2-1/2"]
[ECO "E15"]
[WhiteElo "2308"]
[BlackElo "2523"]
[Annotator "TA"]
[PlyCount "104"]
[EventDate "2024.01.11"]
[EventType "tourn"]
[EventCountry "ARM"]
[SourceTitle "playchess.com"]
[Source "ChessBase"]
[SourceQuality "1"]
[TimeControl "40/5400+30:1800+30"]

{[%evp 13,104,25,27,16,25,15,30,11,17,0,39,12,21,11,11,11,21,17,11,11,11,12,16,15,10,16,12,22,30,24,6,0,0,0,0,-12,0,-25,-8,-6,-7,-20,-2,-8,-11,-6,-8,-8,0,-17,0,-28,0,0,6,0,0,0,0,0,0,0,0,0,29,27,73,76,75,87,73,30,30,0,0,0,0,0,0,0,0,0,0,0,0,0,0,0,0,0,0,0,0]} 1. d4 {[%emt 0:00:34]} Nf6 {[%emt 0:01:04]} 2. c4 {[%emt 0:01:48]} e6 {[%emt 0:00:10]} 3. Nf3 {[%emt 0:00:58]} b6 {[%emt 0:01:08]} 4. g3 {[%emt 0:02:42]} Ba6 {[%emt 0:00:46]} 5. Nbd2 {[%emt 0:06:41]} c5 {[%emt 0:02:55]} 6. Bg2 {[%emt 0:02:38]} Bb7 {[%emt 0:02:17]} 7. O-O $1 {[%emt 0:06:54][%mdl 4] outshines the older 7.e4.} cxd4 {[%emt 0:00:36]} 8. Nb3 {[%emt 0:00:16] E15: Queen's Indian: 4 g3 sidelines, 4 g3 Ba6 and 4 g3 Bb7 early deviations.} Nc6 {[%emt 0:06:21]} 9. Nfxd4 {[%emt 0:01:34]} Be7 {[%emt 0:06:43]} 10. Nb5 {[%emt 0:04:37] White has an edge.} O-O {[%emt 0:01:41]} 11. Bf4 {[%emt 0:04:33]} Ne8 {[%emt 0:01:44]} (11... d5 $5 {[%cal Rd5c4]}) 12. Nd6 {[%emt 0:07:40]} Nxd6 {[%emt 0:02:14]} 13. Bxd6 {[%emt 0:00:06]} Rc8 {[%emt 0:01:52] [#]} 14. Rc1 $146 {[%emt 0:07:33]} ({Predecessor:} 14. Qd2 Bxd6 15. Qxd6 Na5 16. Nxa5 Bxg2 17. Kxg2 bxa5 18. b3 Qc7 19. Qxc7 Rxc7 20. Rfd1 {0-1 Ferriere,P (1683)-Durand,S (1856) Paris-ch op-B 2009 (4)}) 14... Ba6 {[%emt 0:06:21]} 15. Qd2 {[%emt 0:10:47]} Bxd6 {[%emt 0:19:57]} 16. Qxd6 {[%emt 0:00:11]} Qe7 {[%emt 0:00:44]} 17. Rfd1 {[%emt 0:13:22] aiming for Qxe7.} Rfd8 {[%emt 0:01:16]} 18. f4 {[%emt 0:08:23]} Qxd6 {[%emt 0:04:10]} 19. Rxd6 {[%emt 0:00:06]} Kf8 {[%emt 0:00:18]} 20. Kf2 {[%emt 0:01:43]} Ke7 {[%emt 0:04:23]} 21. Rdd1 {[%emt 0:00:43]} d6 {[%emt 0:01:09]} 22. Bf1 {[%emt 0:04:59]} Rc7 {[%emt 0:04:25]} 23. e3 {[%emt 0:01:10]} Nb8 {[%emt 0:00:20]} 24. Rd2 {[%emt 0:04:48]} f5 {[%emt 0:05:55]} 25. Rdc2 {[%emt 0:03:43]} Rdc8 {[%emt 0:01:25]} 26. Nd4 {[%emt 0:01:10]} g6 {[%emt 0:02:32]} 27. a4 {[%emt 0:01:50]} e5 {[%emt 0:02:23]} 28. Nb5 {[%emt 0:00:04]} Bxb5 {[%emt 0:00:07]} 29. axb5 {[%emt 0:00:03]} Nd7 {[%emt 0:00:11]} 30. b3 {[%emt 0:02:56]} Nf6 {[%emt 0:03:49]} 31. fxe5 {[%emt 0:00:29]} dxe5 {[%emt 0:01:02]} 32. Be2 {[%emt 0:00:42]} Ne4+ {[%emt 0:00:51]} 33. Ke1 {[%emt 0:00:04]} Nd6 {[%emt 0:01:22]} 34. Kd2 {[%emt 0:00:53]} h5 {[%emt 0:00:33]} 35. b4 {[%emt 0:00:42]} g5 {[%emt 0:03:44]} 36. Kd1 {[%emt 0:00:21]} Rb8 {[%emt 0:05:16]} 37. Rb2 {[%emt 0:00:42]} h4 {[%emt 0:05:11]} 38. gxh4 {[%emt 0:00:20]} gxh4 {[%emt 0:00:16] ...Rg8 would be deadly.} (38... Rh8 $5 {[%cal Rh8h4]}) 39. c5 {[%emt 0:00:08]} Nb7 {[%emt 0:02:14]} (39... Ne4 $11) 40. Rbc2 $16 {[%emt 0:00:00]} Rbc8 {[%emt 0:00:00][%cal Rb6c5]} 41. c6 {[%emt 0:02:42]} Nd6 {[%emt 0:00:45]} 42. Ra2 {[%emt 0:10:39]} Rg8 $1 {[%emt 0:00:48]} 43. Rca1 {[%emt 0:00:17]} Rg1+ {[%emt 0:03:03] The position is equal.} 44. Kc2 {[%emt 0:00:06]} Rg2 {[%emt 0:00:48][%csl LRb5,LRe2,LRh2]} 45. Kb3 {[%emt 0:01:03]} Rxh2 {[%emt 0:03:52] Hoping for ...Kf6.} 46. Rxa7 {[%emt 0:02:23]} Rxa7 {[%emt 0:01:19]} 47. Rxa7+ $11 {[%emt 0:00:04][%mdl 4096] Endgame KRB-KRN} Ke6 {[%emt 0:00:05]} 48. Bc4+ {[%emt 0:00:54]} Nxc4 {[%emt 0:00:34]} 49. Kxc4 {[%emt 0:00:05]} f4 {[%emt 0:02:10]} 50. exf4 {[%emt 0:02:46]} exf4 {[%emt 0:00:02]} 51. Rh7 {[%emt 0:01:29]} Rh1 {[%emt 0:03:52]} 52. Kd3 {[%emt 0:04:47]} h3 {[%emt 0:01:32] Weighted Error Value: White=0.06 (flawless) /Black=0.05 (flawless)} 1/2-1/2

[Event "84th Armenian-HL-ch 2024"]
[Site "Yerevan"]
[Date "2024.01.18"]
[Round "7.1"]
[White "Davtyan, Artur"]
[Black "Chaqryan, Erik"]
[Result "1-0"]
[ECO "B12"]
[WhiteElo "2477"]
[BlackElo "2308"]
[Annotator "TA"]
[PlyCount "83"]
[EventDate "2024.01.11"]
[EventType "tourn"]
[EventCountry "ARM"]
[SourceTitle "playchess.com"]
[Source "ChessBase"]
[SourceQuality "1"]
[TimeControl "40/5400+30:1800+30"]

{[%evp 11,83,24,14,15,32,12,27,4,38,47,43,0,0,0,14,10,18,20,11,-45,-54,-56,-50,-119,-39,-44,17,35,55,62,77,81,78,100,133,97,125,118,163,139,133,80,248,245,219,235,324,330,323,311,364,336,471,475,469,469,463,338,346,295,479,444,569,557,857,542,591,404,575,612,645,642,601,515]} 1. e4 {[%emt 0:00:31]} c6 {[%emt 0:00:25]} 2. d4 {[%emt 0:00:06]} d5 {[%emt 0:00:05]} 3. e5 {[%emt 0:00:04]} Bf5 {[%emt 0:00:16]} 4. Be2 {[%emt 0:00:07]} e6 {[%emt 0:02:32]} 5. Nf3 {[%emt 0:00:08]} Nd7 {[%emt 0:00:50]} 6. O-O {[%emt 0:02:10]} a6 {[%emt 0:03:05] 6...a5 is a critical line.} 7. Nbd2 {[%emt 0:09:51][%cal Bb1d2,Bd2f1,Bf1e3][%mdl 32] B12: Caro-Kann: Advance Variation.} h6 {[%emt 0:18:54]} 8. Re1 {[%emt 0:08:51]} Ne7 {[%emt 0:08:27]} 9. Nf1 {[%emt 0:00:50] [#] White has an edge.} g5 $146 {[%emt 0:07:38]} ({Predecessor:} 9... c5 10. c4 dxc4 11. Ne3 Be4 12. Nd2 Bc6 13. Ndxc4 Nd5 14. Bf3 N5b6 15. d5 exd5 16. e6 Nf6 17. Ne5 fxe6 18. Bh5+ Ke7 19. Nf5+ exf5 20. Nxc6+ {1-0 Dubov,D (2702)-Shimanov,A (2581) Titled Tuesday intern op 05th Jul Early blitz 2022 (10)}) 10. Ne3 {[%emt 0:10:46]} Bg6 {[%emt 0:09:14]} 11. h4 {[%emt 0:05:43]} Nf5 $1 {[%emt 0:05:02]} 12. hxg5 {[%emt 0:01:53]} hxg5 {[%emt 0:00:39]} 13. Nxf5 {[%emt 0:13:27]} Bxf5 {[%emt 0:00:05]} 14. Bxg5 {[%emt 0:00:18]} Be7 {[%emt 0:00:05]} 15. Bxe7 {[%emt 0:05:15]} (15. Bf4 $11) 15... Qxe7 $15 {[%emt 0:01:21]} 16. Qd2 {[%emt 0:00:11]} f6 {[%emt 0:13:36] aiming for ...fxe5.} 17. exf6 {[%emt 0:01:50]} (17. Bd3 $1 $15 Qh7 18. Kf1) 17... Qh7 {[%emt 0:01:32]} (17... Nxf6 $17 {Hoping for ...Qh7.} 18. Bd3 Ne4) 18. f7+ {[%emt 0:00:05]} Ke7 {[%emt 0:02:51]} (18... Kxf7 $2 19. Ng5+ Kg8 20. Nxh7 $18) (18... Qxf7 $15 19. Ng5 Qg6) 19. Kf1 $1 $11 {[%emt 0:00:07]} Qh1+ {[%emt 0:08:00]} (19... Kxf7 $2 20. Ng5+ Kg8 21. Nxh7 $18) 20. Ng1 {[%emt 0:00:09] Qb4+ would be deadly.} Kxf7 {[%emt 0:00:04] [#]} 21. Bf3 $1 {[%emt 0:25:06] Threatens to win with g4.} Qh4 {[%emt 0:07:36] Wards off g4} 22. g3 {[%emt 0:01:41]} Qf6 {[%emt 0:00:04]} 23. Re2 {[%emt 0:00:37]} Rae8 {[%emt 0:07:29]} 24. Rae1 {[%emt 0:00:17]} e5 {[%emt 0:01:56]} 25. dxe5 {[%emt 0:07:32]} Nxe5 {[%emt 0:00:04] [#]} (25... Bh3+ $2 26. Nxh3 Rxe5 27. Nf4 Rxe2 28. Qxe2 $18) 26. Qd4 {[%emt 0:00:07]} (26. Qc3 $142 $1 {[%cal Re2e5]} Ng4 27. Rxe8 (27. Bxd5+ $2 cxd5 28. Qxf6+ Nxf6 $19) 27... Rxe8 28. Bxg4 Rxe1+ 29. Qxe1 Bxg4 30. Qb4) 26... Nxf3 {[%emt 0:01:06] This costs Black the game.} (26... Ng4 $16 {was worth a try.} 27. Qxf6+ (27. Bxd5+ $2 cxd5 28. Qxf6+ Nxf6 $19) 27... Nxf6) 27. Qxf6+ $18 {[%emt 0:00:02][%mdl 64] Deflection} Kxf6 {[%emt 0:00:05]} 28. Rxe8 {[%emt 0:00:05]} Nd2+ {[%emt 0:00:49]} 29. Kg2 {[%emt 0:00:10]} Rxe8 {[%emt 0:00:31]} 30. Rxe8 {[%emt 0:00:01][%mdl 4096] Endgame KRN-KBN} Nc4 {[%emt 0:00:09]} 31. b3 {[%emt 0:01:57]} Na3 {[%emt 0:00:07]} (31... Nd6 {might work better.}) 32. Rb8 {[%emt 0:00:28]} Nxc2 {[%emt 0:01:11]} 33. Rxb7 {[%emt 0:00:02]} d4 {[%emt 0:00:04]} 34. Ne2 {[%emt 0:01:03]} d3 {[%emt 0:01:03]} 35. Nc3 {[%emt 0:00:06]} Ke5 $2 {[%emt 0:00:05]} (35... Ne1+ {keeps fighting.} 36. Kh1 d2) 36. f3 {[%emt 0:02:38]} Kd4 {[%emt 0:00:48]} 37. Nb1 {[%emt 0:00:01]} Na3 {[%emt 0:00:39]} 38. g4 {[%emt 0:04:21]} Be6 {[%emt 0:00:31]} 39. Nd2 {[%emt 0:00:27]} ({Inferior is} 39. Nxa3 d2 40. Re7 d1=Q 41. Rxe6 Qd2+ 42. Kg3 Qxa2 43. Re4+ Kd5 $11) 39... Bd5 {[%emt 0:00:22]} (39... Kc3 $142) 40. Kf2 {[%emt 0:00:00] White is clearly winning.} Nc2 {[%emt 0:00:00]} 41. Nb1 {[%emt 0:02:43]} a5 {[%emt 0:03:55]} 42. g5 {[%emt 0:01:16] Weighted Error Value: White=0.37/Black=0.51} 1-0

[Event "84th Armenian-HL-ch 2024"]
[Site "Yerevan"]
[Date "2024.01.18"]
[Round "7.2"]
[White "Harutyunyan, Tigran K."]
[Black "Gharibyan, Mamikon"]
[Result "1/2-1/2"]
[ECO "D02"]
[WhiteElo "2523"]
[BlackElo "2504"]
[Annotator "TA"]
[PlyCount "120"]
[EventDate "2024.01.11"]
[EventType "tourn"]
[EventCountry "ARM"]
[SourceTitle "playchess.com"]
[Source "ChessBase"]
[SourceQuality "1"]
[TimeControl "40/5400+30:1800+30"]

{[%evp 9,120,22,17,24,18,6,10,4,6,-13,-17,-21,-16,-16,0,-15,-1,-7,-20,-24,0,0,0,0,0,0,0,0,0,0,0,0,18,0,0,-13,0,0,0,0,0,0,0,0,0,0,5,0,42,0,0,1,8,0,0,0,0,0,0,-13,-13,-18,-8,-114,0,0,0,0,0,0,0,0,0,0,0,0,0,0,0,0,0,-8,-8,-8,0,0,0,-6,-6,-6,-6,-6,-6,-6,-6,-6,0,0,0,0,0,0,0,0,0,0,0,0,0,0,0,0,0]} 1. d4 {[%emt 0:00:12]} Nf6 {[%emt 0:00:19]} 2. Nf3 {[%emt 0:00:16]} d5 {[%emt 0:00:15]} 3. Bf4 {[%emt 0:00:16]} Bf5 {[%emt 0:00:39]} 4. c4 {[%emt 0:00:22]} Nbd7 {[%emt 0:00:25]} 5. e3 {[%emt 0:08:24]} e6 {[%emt 0:00:41]} 6. Nc3 {[%emt 0:01:34] D02: 1 d4 d5 2 Nf3 sidelines, including 2...Nf6 3 g3 and 2...Nf6 3 Bf4.} Bb4 {[%emt 0:00:29]} 7. Be2 {[%emt 0:05:44]} dxc4 {[%emt 0:01:54]} 8. Bxc4 {[%emt 0:01:31]} Nd5 {[%emt 0:00:52] [#]} 9. Qb3 $146 {[%emt 0:01:05]} (9. Bxd5 {simplifies} Bxc3+ 10. bxc3 exd5 11. O-O) ({Predecessor:} 9. Bxd5 exd5 10. Qb3 Bxc3+ 11. bxc3 Nb6 12. O-O O-O 13. Nd2 Bd3 14. Rfe1 Qc8 15. Bg3 {½-½ Abasov,N (2664)-Gozzoli,Y (2600) EU-Cup Online Gr-E rapid 2021 (2.3)}) 9... Bxc3+ {[%emt 0:13:48]} 10. bxc3 {[%emt 0:00:07]} Nxf4 {[%emt 0:00:04]} 11. exf4 {[%emt 0:00:07]} Nb6 {[%emt 0:11:17]} 12. Be2 {[%emt 0:00:29]} Qd5 {[%emt 0:06:40]} 13. Rc1 {[%emt 0:06:59]} O-O {[%emt 0:04:48]} 14. g3 {[%emt 0:15:05]} Be4 {[%emt 0:10:18]} 15. O-O {[%emt 0:01:16]} Bxf3 {[%emt 0:05:34]} (15... Qxb3 {simplifies} 16. axb3 Rfd8 17. Rfe1 g6) 16. c4 $1 {[%emt 0:01:04]} Qxd4 {[%emt 0:04:31]} 17. Bxf3 {[%emt 0:00:15]} Qc5 {[%emt 0:05:51]} 18. Qb5 {[%emt 0:14:30]} Qa3 {[%emt 0:02:42][%csl LRa2,LRf3]} 19. Bxb7 {[%emt 0:00:25]} Rab8 {[%emt 0:00:32]} 20. Qc6 {[%emt 0:02:03]} Qxa2 {[%emt 0:08:29][%cal Ob6c4]} 21. c5 {[%emt 0:05:56]} (21. f5 $5) 21... Nd5 {[%emt 0:04:35][%cal Bb6d5,Bd5c3,Bc3e2][%mdl 32]} 22. Ra1 {[%emt 0:00:35]} Qb2 {[%emt 0:03:32]} 23. Rxa7 {[%emt 0:00:52]} Rfd8 {[%emt 0:07:40]} 24. Qa6 {[%emt 0:02:20]} Nc3 {[%emt 0:03:15]} 25. Bf3 {[%emt 0:01:24]} Qb5 {[%emt 0:01:15]} 26. Qc6 {[%emt 0:05:19]} Qxc6 {[%emt 0:00:55]} 27. Bxc6 {[%emt 0:00:02][%cal Of1a1]} Kf8 {[%emt 0:00:48]} 28. Kg2 {[%emt 0:00:27][%cal Of1a1]} Rbc8 {[%emt 0:00:50]} 29. Rc1 {[%emt 0:00:49]} Ne2 {[%emt 0:00:31]} 30. Rb1 {[%emt 0:00:49]} Nd4 {[%emt 0:00:22]} 31. Ba4 {[%emt 0:00:02]} Rd5 {[%emt 0:00:57]} 32. Rb4 {[%emt 0:03:41]} h5 {[%emt 0:00:24]} 33. h3 {[%emt 0:00:45]} Ke7 {[%emt 0:00:13]} 34. g4 {[%emt 0:00:44]} g6 {[%emt 0:00:30]} 35. Rc4 {[%emt 0:01:33]} h4 {[%emt 0:00:33]} 36. f3 {[%emt 0:01:11] [#]} (36. g5 $11 {keeps the balance.}) 36... Ne2 {[%emt 0:01:15]} ({Black should play} 36... e5 $1 $17 37. fxe5 Ne6) 37. Kf2 $11 {[%emt 0:00:01] The position is equal.} Rd2 {[%emt 0:00:45] aiming for ...Ng3+.} 38. Ke3 $1 {[%emt 0:00:01]} Ra2 {[%emt 0:00:29] Threatens to win with ...Ng1.} 39. Rc2 {[%emt 0:00:01]} Rxc2 {[%emt 0:00:20]} 40. Bxc2 {[%emt 0:00:00][%mdl 4096] Endgame KRB-KRN} Nc3 {[%emt 0:00:00] ...Nd5+ is the strong threat.} 41. f5 {[%emt 0:01:11]} gxf5 {[%emt 0:04:29]} 42. gxf5 {[%emt 0:00:08]} Nd5+ {[%emt 0:02:22]} 43. Ke4 {[%emt 0:00:43]} Rb8 {[%emt 0:07:46]} 44. fxe6 {[%emt 0:00:08]} fxe6 {[%emt 0:00:23]} 45. Ba4 {[%emt 0:06:27]} Rb4+ {[%emt 0:05:08]} 46. Kd3 {[%emt 0:00:49]} Rf4 {[%emt 0:03:44]} 47. Bc6 {[%emt 0:01:22]} ({Much weaker is} 47. Bd1 Kf6 48. Ke2 Rc4 $17) 47... Rxf3+ {[%emt 0:01:43]} 48. Ke2 {[%emt 0:01:23]} Re3+ {[%emt 0:04:30]} 49. Kf2 {[%emt 0:01:42] Bxd5 would be deadly.} Rxh3 {[%emt 0:00:27]} 50. Bxd5 {[%emt 0:00:06][%mdl 64] [#] Remove Defender} exd5 {[%emt 0:00:05]} 51. Rxc7+ {[%emt 0:00:05] KR-KR} Ke6 {[%emt 0:00:16]} 52. Rh7 {[%emt 0:00:15]} d4 {[%emt 0:01:43] Strongly threatening ...Kd5.} 53. c6 {[%emt 0:00:24]} Rc3 {[%emt 0:00:49]} 54. Rxh4 {[%emt 0:02:20]} Kd5 {[%emt 0:00:29]} 55. Ke2 {[%emt 0:00:23]} Rxc6 {[%emt 0:00:20]} 56. Kd3 {[%emt 0:00:09]} Rc3+ {[%emt 0:00:05]} 57. Kd2 {[%emt 0:00:05]} Rg3 {[%emt 0:00:40]} 58. Rh8 {[%emt 0:00:21]} Rg2+ {[%emt 0:00:05]} 59. Kd3 {[%emt 0:00:11]} Rg3+ {[%emt 0:00:04]} 60. Kd2 {[%emt 0:00:08]} Rg2+ {[%emt 0:00:02] Weighted Error Value: White=0.08 (flawless) /Black=0.05 (flawless)} 1/2-1/2